fUSD/lending_fUSD_20240212
["ID","MTS","AMOUNT","RATE_DAILY","PERIOD"]
[313885330,1707769891211,-512.59,0.00034246,2]
[313885331,1707769891220,-500.0,0.00034246,2]
[313885332,1707769891230,-1261.01,0.00034246,2]
[313885333,1707769891240,-500.0,0.00034246,2]
[313885334,1707769891249,-5713.47,0.00034246,2]
[313885335,1707769891258,-500.0,0.00034246,2]
[313885336,1707769891268,-500.0,0.00034246,2]
[313885337,1707769891277,-500.0,0.00034246,2]
[313885338,1707769891286,-500.0,0.00034246,2]
[313885339,1707769891296,-500.0,0.00034246,2]
[313885340,1707769891307,-500.0,0.00034246,2]
[313885341,1707769891318,-5782.92,0.00034246,2]
[313885342,1707769891327,-500.0,0.00034246,2]
[313885343,1707769891338,-3592.16,0.00034246,2]
[313885344,1707769891348,-500.0,0.00034246,2]
[313885345,1707769891357,-515.95,0.00034246,2]
[313885346,1707769891366,-1417.96,0.00034246,2]
[313885347,1707769891377,-500.0,0.00034246,2]
[313885348,1707769891387,-1507.74,0.00034246,2]
[313885349,1707769891396,-500.0,0.00034246,2]
[313885350,1707769891407,-500.0,0.00034246,2]
[313885351,1707769891417,-500.0,0.00034246,2]
[313885352,1707769891427,-2719.11,0.00034246,2]
[313885353,1707769891436,-735.15,0.00034246,2]
[313885354,1707769891446,-1563.36,0.00034246,2]
[313885355,1707769891456,-500.0,0.00034246,2]
[313885356,1707769891466,-500.0,0.00034246,2]
[313885357,1707769891477,-500.0,0.00034246,2]
[313885358,1707769891487,-500.0,0.00034246,2]
[313885359,1707769891497,-1284.95,0.00034246,2]
[313885360,1707769891507,-953.13,0.00034246,2]
[313885361,1707769891516,-500.0,0.00034246,2]
[313885362,1707769891526,-500.0,0.00034246,2]
[313885363,1707769891535,-500.0,0.00034246,2]
[313885364,1707769891544,-500.0,0.00034246,2]
[313885365,1707769891554,-500.0,0.00034246,2]
[313885366,1707769891566,-503.01,0.00034246,2]
[313885367,1707769891575,-705.93,0.00034246,2]
[313885368,1707769891584,-500.0,0.00034246,2]
[313885369,1707769891593,-500.0,0.00034246,2]
[313885370,1707769891603,-500.0,0.00034246,2]
[313885371,1707769891612,-2474.64,0.00034246,2]
[313885372,1707769891621,-500.0,0.00034246,2]
[313885373,1707769891631,-500.0,0.00034246,2]
[313885374,1707769891642,-2229.26,0.00034246,2]
[313885375,1707769891652,-500.0,0.00034246,2]
[313885376,1707769891662,-500.0,0.00034246,2]
[313885377,1707769891673,-500.0,0.00034246,2]
[313885378,1707769891682,-500.0,0.00034246,2]
[313885379,1707769891694,-1798.72,0.00034246,2]
[313885380,1707769891703,-1299.67,0.00034246,2]
[313885381,1707769891712,-1347.04,0.00034246,2]
[313885382,1707769891721,-500.0,0.00034246,2]
[313885383,1707769891731,-1180.11,0.00034246,2]
[313885384,1707769891740,-2115.54,0.00034246,2]
[313885385,1707769891750,-513.48,0.00034246,2]
[313885386,1707769891760,-500.0,0.00034246,2]
[313885387,1707769891769,-383.96052802,0.00034246,2]
[313885388,1707769891779,-500.0,0.00034246,2]
[313885389,1707769891788,-500.0,0.00034246,2]
[313885390,1707769891798,-3264.57,0.00034246,2]
[313885391,1707769891807,-3140.53,0.00034246,2]
[313885392,1707769891817,-511.99,0.00034246,2]
[313885393,1707769891826,-500.0,0.00034246,2]
[313885394,1707769891835,-4051.49,0.00034246,2]
[313885395,1707769891845,-500.0,0.00034246,2]
[313885396,1707769891854,-1799.2,0.00034246,2]
[313885397,1707769891863,-166.28,0.00034246,2]
[313885398,1707769891873,-500.0,0.00034246,2]
[313885399,1707769891889,-1680.38,0.00034246,2]
[313885400,1707769891911,-394.04350548,0.00034246,2]
[313885401,1707769891929,-500.0,0.00034246,2]
[313885402,1707769891948,-978.39,0.00034246,2]
[313885403,1707769891964,-522.7,0.00034246,2]
[313885404,1707769891983,-500.0,0.00034246,2]
[313885405,1707769892000,-4240.45,0.00034246,2]
[313885406,1707769892017,-500.0,0.00034246,2]
[313885407,1707769892035,-500.0,0.00034246,2]
[313885408,1707769892052,-573.56,0.00034246,2]
[313885409,1707769892071,-500.0,0.00034246,2]
[313885410,1707769892091,-2397.55,0.00034246,2]
[313885411,1707769892103,-500.0,0.00034246,2]
[313885412,1707769892120,-500.0,0.00034246,2]
[313885413,1707769892136,-150.0,0.00034262,2]
[313885414,1707769892152,-200000.0,0.00034295,10]
[313885415,1707769892169,-200.0,0.000343,7]
[313885416,1707769892185,-155.0,0.0003438,2]
[313885417,1707769892200,-5023.45479461,0.000344,2]
[313885418,1707769892215,-1333.0,0.000344,2]
[313885419,1707769892231,-153.8,0.000344,2]
[313885420,1707769892247,-153.8,0.000344,2]
[313885421,1707769892263,-153.8,0.000344,2]
[313885422,1707769892278,-153.8,0.000344,2]
[313885423,1707769892294,-153.8,0.000344,2]
[313885424,1707769892309,-153.8,0.000344,2]
[313885425,1707769892324,-153.60645692,0.0003443,2]
[313885426,1707769892339,-1000.0,0.00034455,7]
[313885427,1707769892354,-211.29114182,0.0003448,2]
[313885428,1707769892370,-867.144601,0.0003452,2]
[313885429,1707769892385,-889.820514,0.0003452,2]
[313885430,1707769892400,-1558.765397,0.0003452,2]
[313885431,1707769892415,-387.78371377,0.0003452,2]
[313885432,1707769892430,-500.0,0.0003452,2]
[313885433,1707769892445,-500.0,0.0003452,2]
[313885434,1707769892458,-150.16552109,0.0003452,2]
[313885435,1707769892474,-500.0,0.0003452,2]
[313885436,1707769892488,-500.0,0.0003452,2]
[313885437,1707769892503,-500.0,0.0003452,2]
[313885438,1707769892518,-999.051865,0.0003452,2]
[313885439,1707769892532,-518.913423,0.0003452,2]
[313885440,1707769892548,-500.0,0.0003452,2]
[313885441,1707769892564,-500.0,0.0003452,2]
[313885442,1707769892579,-415.130738,0.0003452,2]
[313885443,1707769892594,-799.241492,0.0003452,2]
[313885444,1707769892610,-335.67,0.0003452,2]
[313885445,1707769892624,-500.0,0.0003452,2]
[313885446,1707769892640,-500.0,0.0003452,2]
[313885447,1707769892656,-500.0,0.0003452,2]
[313885448,1707769892671,-500.0,0.0003452,2]
[313885449,1707769892685,-500.0,0.0003452,2]
[313885450,1707769892700,-1245.392216,0.0003452,2]
[313885451,1707769892715,-2397.724477,0.0003452,2]
[313885452,1707769892729,-500.0,0.0003452,2]
[313885453,1707769892743,-169.97732222,0.0003452,2]
[313885454,1707769892758,-500.0,0.0003452,2]
[313885455,1707769892773,-500.0,0.0003452,2]
[313885456,1707769892788,-500.0,0.0003452,2]
[313885457,1707769892803,-500.0,0.0003452,2]
[313885458,1707769892818,-500.0,0.0003452,2]
[313885459,1707769892832,-500.0,0.0003452,2]
[313885460,1707769892847,-500.0,0.0003452,2]
[313885461,1707769892861,-500.0,0.0003452,2]
[313885462,1707769892876,-500.0,0.0003452,2]
[313885463,1707769892891,-455.75002333,0.0003452,2]
[313885464,1707769892906,-500.0,0.0003452,2]
[313885465,1707769892920,-500.0,0.0003452,2]
[313885466,1707769892935,-500.0,0.0003452,2]
[313885467,1707769892952,-258.33130934,0.0003452,2]
[313885468,1707769892967,-468.21,0.0003452,2]
[313885469,1707769892982,-500.0,0.0003452,2]
[313885470,1707769892997,-500.0,0.0003452,2]
[313885471,1707769893011,-500.0,0.0003452,2]
[313885472,1707769893026,-500.0,0.0003452,2]
[313885473,1707769893041,-500.0,0.0003452,2]
[313885474,1707769893055,-500.0,0.0003452,2]
[313885475,1707769893069,-158.22647475,0.0003452,2]
[313885476,1707769893084,-304.86808545,0.0003452,2]
[313885477,1707769893099,-500.0,0.0003452,2]
[313885478,1707769893113,-500.0,0.0003452,2]
[313885479,1707769893128,-500.0,0.0003452,2]
[313885480,1707769893142,-500.0,0.0003452,2]
[313885481,1707769893157,-500.0,0.0003452,7]
[313885482,1707769893172,-500.0,0.0003452,2]
[313885483,1707769893187,-500.0,0.0003452,2]
[313885484,1707769893202,-500.0,0.0003452,2]
[313885485,1707769893217,-500.0,0.0003452,2]
[313885486,1707769893232,-500.0,0.0003452,2]
[313885487,1707769893246,-500.0,0.0003452,2]
[313885488,1707769893261,-500.0,0.0003452,2]
[313885489,1707769893275,-966.32,0.0003452,2]
[313885490,1707769893290,-500.0,0.0003452,2]
[313885491,1707769893304,-500.0,0.0003452,2]
[313885492,1707769893491,-500.0,0.0003452,2]
[313885493,1707769893507,-500.0,0.0003452,2]
[313885494,1707769893517,-209.56851315,0.0003452,2]
[313885495,1707769893526,-500.0,0.0003452,2]
[313885496,1707769893535,-500.0,0.0003452,2]
[313885497,1707769893545,-500.0,0.0003452,2]
[313885498,1707769893555,-807.54,0.0003452,2]
[313885499,1707769893567,-500.0,0.0003452,2]
[313885500,1707769893576,-500.0,0.0003452,2]
[313885501,1707769893586,-500.0,0.0003452,2]
[313885502,1707769893595,-500.0,0.0003452,2]
[313885503,1707769893606,-500.0,0.0003452,2]
[313885504,1707769893615,-500.0,0.0003452,2]
[313885505,1707769893625,-509.91,0.0003452,2]
[313885506,1707769893634,-500.0,0.0003452,2]
[313885507,1707769893644,-500.0,0.0003452,2]
[313885508,1707769893655,-500.0,0.0003452,2]
[313885509,1707769893664,-500.0,0.0003452,2]
[313885510,1707769893674,-500.0,0.0003452,2]
[313885511,1707769893684,-500.0,0.0003452,2]
[313885512,1707769893693,-500.0,0.0003452,2]
[313885513,1707769893703,-500.0,0.0003452,2]
[313885514,1707769893712,-500.22,0.0003452,2]
[313885515,1707769893722,-500.0,0.0003452,2]
[313885516,1707769893732,-500.0,0.0003452,2]
[313885517,1707769893742,-500.0,0.0003452,2]
[313885518,1707769893751,-551.88,0.0003452,2]
[313885519,1707769893761,-500.0,0.0003452,2]
[313885520,1707769893771,-580.77,0.0003452,2]
[313885521,1707769893780,-500.0,0.0003452,2]
[313885522,1707769893790,-500.0,0.0003452,2]
[313885523,1707769893799,-564.44,0.0003452,2]
[313885524,1707769893808,-952.06,0.0003452,2]
[313885525,1707769893818,-500.0,0.0003452,2]
[313885526,1707769893827,-500.0,0.0003452,2]
[313885527,1707769893837,-500.0,0.0003452,2]
[313885528,1707769893846,-500.0,0.0003452,2]
[313885529,1707769893855,-500.0,0.0003452,2]
[313885530,1707769893865,-538.47,0.0003452,2]
[313885531,1707769893874,-500.0,0.0003452,2]
[313885532,1707769893884,-151.85247883,0.0003452,2]
[313885533,1707769893894,-500.0,0.0003452,2]
[313885534,1707769893903,-500.0,0.0003452,2]
[313885535,1707769893913,-1235.07,0.0003452,2]
[313885536,1707769893924,-500.0,0.0003452,2]
[313885537,1707769893934,-500.0,0.0003452,2]
[313885538,1707769893943,-1500.0,0.0003452,5]
[313885539,1707769893954,-599.06684563,0.0003452,2]
[313885540,1707769893963,-500.0,0.0003452,2]
[313885541,1707769893973,-500.0,0.0003452,2]
[313885542,1707769893983,-500.0,0.0003452,2]
[313885543,1707769893994,-500.0,0.0003452,2]
[313885544,1707769894003,-500.0,0.0003452,2]
[313885545,1707769894014,-500.0,0.0003452,2]
[313885546,1707769894024,-1080.75,0.0003452,2]
[313885547,1707769894034,-500.0,0.0003452,2]
[313885548,1707769894044,-728.15,0.0003452,2]
[313885549,1707769894054,-500.0,0.0003452,2]
[313885550,1707769894063,-796.14,0.0003452,2]
[313885551,1707769894072,-588.98,0.0003452,2]
[313885552,1707769894082,-500.0,0.0003452,2]
[313885553,1707769894091,-586.63114415,0.0003452,2]
[313885554,1707769894101,-5409.76,0.0003452,2]
[313885555,1707769894110,-500.0,0.0003452,2]
[313885556,1707769894119,-500.0,0.0003452,2]
[313885557,1707769894129,-500.0,0.0003452,2]
[313885558,1707769894138,-500.0,0.0003452,2]
[313885559,1707769894147,-500.0,0.0003452,2]
[313885560,1707769894156,-500.0,0.0003452,2]
[313885561,1707769894166,-1331.32,0.0003452,2]
[313885562,1707769894175,-917.05,0.0003452,2]
[313885563,1707769894184,-500.0,0.0003452,2]
[313885564,1707769894194,-3280.01,0.0003452,2]
[313885565,1707769894203,-9977.66,0.0003452,2]
[313885566,1707769894213,-500.0,0.0003452,2]
[313885567,1707769894223,-500.0,0.0003452,2]
[313885568,1707769894232,-4143.77,0.0003452,2]
[313885569,1707769894242,-5964.37,0.0003452,2]
[313885570,1707769894252,-500.0,0.0003452,2]
[313885571,1707769894261,-500.0,0.0003452,2]
[313885572,1707769894271,-695.09,0.0003452,2]
[313885573,1707769894281,-500.0,0.0003452,2]
[313885574,1707769894290,-561.48,0.0003452,2]
[313885575,1707769894300,-500.0,0.0003452,2]
[313885576,1707769894310,-843.63,0.0003452,2]
[313885577,1707769894319,-500.0,0.0003452,2]
[313885578,1707769894329,-500.0,0.0003452,2]
[313885579,1707769894340,-984.81,0.0003452,2]
[313885580,1707769894349,-500.0,0.0003452,2]
[313885581,1707769894358,-500.0,0.0003452,2]
[313885582,1707769894368,-500.0,0.0003452,2]
[313885583,1707769894377,-500.0,0.0003452,2]
[313885584,1707769894387,-1158.95,0.0003452,2]
[313885585,1707769894396,-500.0,0.0003452,2]
[313885586,1707769894405,-500.0,0.0003452,2]
[313885587,1707769894415,-500.0,0.0003452,2]
[313885588,1707769894427,-2406.89,0.0003452,2]
[313885589,1707769894436,-500.0,0.0003452,2]
[313885590,1707769894446,-500.0,0.0003452,2]
[313885591,1707769894456,-578.56,0.0003452,2]
[313885592,1707769894465,-500.0,0.0003452,2]
[313885593,1707769894475,-500.0,0.0003452,2]
[313885594,1707769894485,-586.89,0.0003452,2]
[313885595,1707769894495,-500.0,0.0003452,2]
[313885596,1707769894505,-500.0,0.0003452,2]
[313885597,1707769894514,-500.0,0.0003452,2]
[313885598,1707769894523,-819.76,0.0003452,2]
[313885599,1707769894533,-500.0,0.0003452,2]
[313885600,1707769894542,-500.0,0.0003452,2]
[313885601,1707769894552,-500.0,0.0003452,2]
[313885602,1707769894564,-500.0,0.0003452,2]
[313885603,1707769894574,-1375.77,0.0003452,2]
[313885604,1707769894583,-4244.4,0.0003452,2]
[313885605,1707769894592,-500.0,0.0003452,2]
[313885606,1707769894601,-500.0,0.0003452,2]
[313885607,1707769894610,-500.0,0.0003452,2]
[313885608,1707769894619,-500.0,0.0003452,2]
[313885609,1707769894629,-500.0,0.0003452,2]
[313885610,1707769894639,-500.0,0.0003452,2]
[313885611,1707769894649,-500.0,0.0003452,2]
[313885612,1707769894658,-846.93,0.0003452,2]
[313885613,1707769894669,-500.0,0.0003452,2]
[313885614,1707769894678,-500.0,0.0003452,2]
[313885615,1707769894688,-500.0,0.0003452,2]
[313885616,1707769894697,-3071.04,0.0003452,2]
[313885617,1707769894706,-728.9,0.0003452,2]
[313885618,1707769894716,-616.73,0.0003452,2]
[313885619,1707769894725,-500.0,0.0003452,2]
[313885620,1707769894735,-500.0,0.0003452,2]
[313885621,1707769894745,-500.0,0.0003452,2]
[313885622,1707769894755,-560.54,0.0003452,2]
[313885623,1707769894765,-1820.56,0.0003452,2]
[313885624,1707769894775,-500.0,0.0003452,2]
[313885625,1707769894784,-743.91,0.0003452,2]
[313885626,1707769894793,-500.0,0.0003452,2]
[313885627,1707769894803,-500.0,0.0003452,2]
[313885628,1707769894813,-735.16,0.0003452,2]
[313885629,1707769894822,-1028.39,0.0003452,2]
[313885630,1707769894832,-1049.27,0.0003452,2]
[313885631,1707769894841,-4338.57,0.0003452,2]
[313885632,1707769894852,-500.0,0.0003452,2]
[313885633,1707769894861,-500.0,0.0003452,2]
[313885634,1707769894870,-2013.56,0.0003452,2]
[313885635,1707769894881,-500.0,0.0003452,2]
[313885636,1707769894891,-1012.67,0.0003452,2]
[313885637,1707769894900,-1445.06,0.0003452,2]
[313885638,1707769894910,-500.0,0.0003452,2]
[313885639,1707769894921,-500.0,0.0003452,2]
[313885640,1707769894931,-1677.14,0.0003452,2]
[313885641,1707769894940,-500.0,0.0003452,2]
[313885642,1707769894949,-951.75,0.0003452,2]
[313885643,1707769894959,-1575.25,0.0003452,2]
[313885644,1707769894969,-1311.14,0.0003452,2]
[313885645,1707769894979,-1386.13,0.0003452,2]
[313885646,1707769894988,-500.0,0.0003452,2]
[313885647,1707769894997,-893.85,0.0003452,2]
[313885648,1707769895007,-500.0,0.0003452,2]
[313885649,1707769895016,-1280.91,0.0003452,2]
[313885650,1707769895026,-500.0,0.0003452,2]
[313885651,1707769895035,-500.0,0.0003452,2]
[313885652,1707769895044,-7777.87,0.0003452,2]
[313885653,1707769895054,-501.05,0.0003452,2]
[313885654,1707769895063,-502.28,0.0003452,2]
[313885655,1707769895073,-500.0,0.0003452,2]
[313885656,1707769895082,-814.8,0.0003452,2]
[313885657,1707769895092,-961.32,0.0003452,2]
[313885658,1707769895101,-500.0,0.0003452,2]
[313885659,1707769895110,-500.0,0.0003452,2]
[313885660,1707769895119,-500.0,0.0003452,2]
[313885661,1707769895128,-551.08,0.0003452,2]
[313885662,1707769895138,-500.0,0.0003452,2]
[313885663,1707769895148,-500.0,0.0003452,2]
[313885664,1707769895157,-500.0,0.0003452,2]
[313885665,1707769895168,-812.86,0.0003452,2]
[313885666,1707769895177,-500.0,0.0003452,2]
[313885667,1707769895187,-512.59,0.0003452,2]
[313885668,1707769895196,-500.0,0.0003452,2]
[313885669,1707769895206,-1261.01,0.0003452,2]
[313885670,1707769895215,-500.0,0.0003452,2]
[313885671,1707769895225,-5713.47,0.0003452,2]
[313885672,1707769895235,-500.0,0.0003452,2]
[313885673,1707769895245,-500.0,0.0003452,2]
[313885674,1707769895255,-500.0,0.0003452,2]
[313885675,1707769895266,-500.0,0.0003452,2]
[313885676,1707769895279,-500.0,0.0003452,2]
[313885677,1707769895289,-500.0,0.0003452,2]
[313885678,1707769895300,-5782.92,0.0003452,2]
[313885679,1707769895311,-608.44,0.0003452,2]
[313885680,1707769895321,-3592.16,0.0003452,2]
[313885681,1707769895332,-500.0,0.0003452,2]
[313885682,1707769895343,-1417.96,0.0003452,2]
[313885683,1707769895354,-500.0,0.0003452,2]
[313885684,1707769895364,-1507.74,0.0003452,2]
[313885685,1707769895375,-500.0,0.0003452,2]
[313885686,1707769895386,-500.0,0.0003452,2]
[313885687,1707769895396,-500.0,0.0003452,2]
[313885688,1707769895406,-2719.11,0.0003452,2]
[313885689,1707769895417,-735.15,0.0003452,2]
[313885690,1707769895428,-1563.36,0.0003452,2]
[313885691,1707769895437,-500.0,0.0003452,2]
[313885692,1707769895447,-500.0,0.0003452,2]
[313885693,1707769895458,-500.0,0.0003452,2]
[313885694,1707769895469,-514.58,0.0003452,2]
[313885695,1707769895481,-1284.95,0.0003452,2]
[313885696,1707769895492,-953.13,0.0003452,2]
[313885697,1707769895504,-500.0,0.0003452,2]
[313885698,1707769895514,-500.0,0.0003452,2]
[313885699,1707769895525,-500.0,0.0003452,2]
[313885700,1707769895536,-500.0,0.0003452,2]
[313885701,1707769895547,-331.69,0.0003452,2]
[313885702,1707769895558,-503.01,0.0003452,2]
[313885703,1707769895572,-705.93,0.0003452,2]
[313885704,1707769895583,-500.0,0.0003452,2]
[313885705,1707769895594,-500.0,0.0003452,2]
[313885706,1707769895604,-500.0,0.0003452,2]
[313885707,1707769895615,-2474.64,0.0003452,2]
[313885708,1707769895625,-500.0,0.0003452,2]
[313885709,1707769895636,-500.0,0.0003452,2]
[313885710,1707769895649,-2229.26,0.0003452,2]
[313885711,1707769895660,-500.0,0.0003452,2]
[313885712,1707769895671,-500.0,0.0003452,2]
[313885713,1707769895682,-500.0,0.0003452,2]
[313885714,1707769895692,-500.0,0.0003452,2]
[313885715,1707769895702,-1299.67,0.0003452,2]
[313885716,1707769895712,-1347.04,0.0003452,2]
[313885717,1707769895721,-1798.72,0.0003452,2]
[313885718,1707769895731,-500.0,0.0003452,2]
[313885719,1707769895741,-1180.11,0.0003452,2]
[313885720,1707769895751,-2115.54,0.0003452,2]
[313885721,1707769895761,-513.48,0.0003452,2]
[313885722,1707769895771,-500.0,0.0003452,2]
[313885723,1707769895781,-500.0,0.0003452,2]
[313885724,1707769895791,-3264.57,0.0003452,2]
[313885725,1707769895802,-3140.53,0.0003452,2]
[313885726,1707769895812,-511.99,0.0003452,2]
[313885727,1707769895822,-500.0,0.0003452,2]
[313885728,1707769895832,-4051.49,0.0003452,2]
[313885729,1707769895842,-500.0,0.0003452,2]
[313885730,1707769895852,-1799.2,0.0003452,2]
[313885731,1707769895863,-500.0,0.0003452,2]
[313885732,1707769895873,-1680.38,0.0003452,2]
[313885733,1707769895882,-500.0,0.0003452,2]
[313885734,1707769895892,-978.39,0.0003452,2]
[313885735,1707769895902,-500.0,0.0003452,2]
[313885736,1707769895912,-522.7,0.0003452,2]
[313885737,1707769895922,-4240.45,0.0003452,2]
[313885738,1707769895931,-500.0,0.0003452,2]
[313885739,1707769895941,-500.0,0.0003452,2]
[313885740,1707769895951,-573.56,0.0003452,2]
[313885741,1707769895961,-500.0,0.0003452,2]
[313885742,1707769895971,-2397.55,0.0003452,2]
[313885743,1707769895981,-500.0,0.0003452,2]
[313885744,1707769895990,-10000.0,0.00034521,2]
[313885745,1707769896000,-150.0,0.00034548,10]
[313885746,1707769896010,-150.0,0.00034553,2]
[313885747,1707769896020,-150.0,0.00034607,2]
[313885748,1707769896029,-154.16,0.00034649,2]
[313885749,1707769896039,-200.0,0.000347,7]
[313885750,1707769896050,-301.34,0.000347,2]
[313885751,1707769896060,-155.0,0.00034712,2]
[313885752,1707769896069,-22533.74498828,0.00034717,2]
[313885753,1707769896080,-620.1932026,0.0003477,2]
[313885754,1707769896089,-934.5185116,0.0003477,2]
[313885755,1707769896099,-218.5912298,0.0003477,2]
[313885756,1707769896109,-25793.9075,0.0003477,2]
[313885757,1707769896119,-9418.217634,0.0003477,2]
[313885758,1707769896129,-2607.8254595,0.0003477,2]
[313885759,1707769896140,-528.1706132,0.0003477,2]
[313885760,1707769896151,-919.9927408,0.0003477,2]
[313885761,1707769896161,-1300.716902,0.00034794,2]
[313885762,1707769896172,-1334.730771,0.00034794,2]
[313885763,1707769896182,-2338.148096,0.00034794,2]
[313885764,1707769896191,-500.0,0.00034794,2]
[313885765,1707769896201,-500.0,0.00034794,2]
[313885766,1707769896211,-500.0,0.00034794,2]
[313885767,1707769896221,-500.0,0.00034794,2]
[313885768,1707769896230,-500.0,0.00034794,2]
[313885769,1707769896240,-1498.577798,0.00034794,2]
[313885770,1707769896250,-778.370134,0.00034794,2]
[313885771,1707769896260,-492.57,0.00034794,2]
[313885772,1707769896270,-500.0,0.00034794,2]
[313885773,1707769896279,-622.696108,0.00034794,2]
[313885774,1707769896289,-1198.862238,0.00034794,2]
[313885775,1707769896299,-500.0,0.00034794,2]
[313885776,1707769896308,-500.0,0.00034794,2]
[313885777,1707769896318,-500.0,0.00034794,2]
[313885778,1707769896327,-500.0,0.00034794,2]
[313885779,1707769896337,-426.47754048,0.00034794,2]
[313885780,1707769896346,-1868.088324,0.00034794,2]
[313885781,1707769896356,-3596.586715,0.00034794,2]
[313885782,1707769896365,-500.0,0.00034794,2]
[313885783,1707769896374,-500.0,0.00034794,2]
[313885784,1707769896384,-500.0,0.00034794,2]
[313885785,1707769896394,-500.0,0.00034794,2]
[313885786,1707769896403,-500.0,0.00034794,2]
[313885787,1707769896412,-500.0,0.00034794,2]
[313885788,1707769896422,-500.0,0.00034794,2]
[313885789,1707769896431,-500.0,0.00034794,2]
[313885790,1707769896441,-500.0,0.00034794,2]
[313885791,1707769896450,-500.0,0.00034794,2]
[313885792,1707769896461,-500.0,0.00034794,2]
[313885793,1707769896470,-500.0,0.00034794,2]
[313885794,1707769896479,-500.0,0.00034794,2]
[313885795,1707769896489,-500.0,0.00034794,2]
[313885796,1707769896499,-619.61,0.00034794,2]
[313885797,1707769896508,-500.0,0.00034794,2]
[313885798,1707769896518,-596.76873949,0.00034794,2]
[313885799,1707769896527,-500.0,0.00034794,2]
[313885800,1707769896536,-500.0,0.00034794,2]
[313885801,1707769896701,-500.0,0.00034794,2]
[313885802,1707769896726,-405.21154276,0.00034794,2]
[313885803,1707769896736,-500.0,0.00034794,2]
[313885804,1707769896746,-500.0,0.00034794,2]
[313885805,1707769896756,-500.0,0.00034794,7]
[313885806,1707769896766,-363.15117953,0.00034794,2]
[313885807,1707769896776,-204.28,0.00034794,2]
[313885808,1707769896785,-500.0,0.00034794,2]
[313885809,1707769896796,-500.0,0.00034794,2]
[313885810,1707769896806,-500.0,0.00034794,2]
[313885811,1707769896816,-500.0,0.00034794,2]
[313885812,1707769896825,-500.0,0.00034794,2]
[313885813,1707769896835,-966.32,0.00034794,2]
[313885814,1707769896844,-500.0,0.00034794,2]
[313885815,1707769896853,-486.35,0.00034794,2]
[313885816,1707769896863,-500.0,0.00034794,2]
[313885817,1707769896873,-453.16076893,0.00034794,2]
[313885818,1707769896883,-500.0,0.00034794,2]
[313885819,1707769896892,-500.0,0.00034794,2]
[313885820,1707769896903,-500.0,0.00034794,2]
[313885821,1707769896912,-807.54,0.00034794,2]
[313885822,1707769896922,-500.0,0.00034794,2]
[313885823,1707769896931,-500.0,0.00034794,2]
[313885824,1707769896942,-500.0,0.00034794,2]
[313885825,1707769896951,-500.0,0.00034794,2]
[313885826,1707769896961,-500.0,0.00034794,2]
[313885827,1707769896971,-500.0,0.00034794,2]
[313885828,1707769896980,-509.91,0.00034794,2]
[313885829,1707769896990,-500.0,0.00034794,2]